bitfinex/quotes_BTCUSD_20250204
["timestamp","ask_amount","ask_price","bid_price","bid_amount"]
[1738686425434,1.68844215,99599.0,99598.0,0.00024697]
[1738686425635,1.68744215,99599.0,99598.0,0.00024697]
[1738686425846,1.68844215,99599.0,99598.0,0.00024697]
[1738686426099,0.18744215,99599.0,99598.0,0.00024697]
[1738686426532,1.54031669,99599.0,99598.0,0.00024697]
[1738686426702,1.69091969,99599.0,99598.0,0.00024697]
[1738686427111,1.53003669,99599.0,99598.0,0.00024697]
[1738686427284,1.53003669,99599.0,99598.0,0.15085197]
[1738686427493,1.53103669,99599.0,99598.0,0.15301985]
[1738686427706,1.53003669,99599.0,99598.0,0.15301985]
[1738686427913,1.53103669,99599.0,99598.0,0.15301985]
[1738686428351,1.53003669,99599.0,99598.0,0.15301985]
[1738686428547,0.001,99599.0,99598.0,0.15301985]
[1738686428977,0.0001069,99600.0,99599.0,0.150603]
[1738686429344,0.0001069,99600.0,99599.0,0.15276303]
[1738686430771,9e-07,99600.0,99599.0,0.30325281]
[1738686430972,4e-07,99602.0,99601.0,0.1506]
[1738686431164,4e-07,99602.0,99601.0,0.41320341]
[1738686431365,0.00990052,99634.0,99613.0,0.428582]
[1738686431674,0.08854926,99645.0,99613.0,0.56405935]
[1738686432699,0.08854926,99645.0,99640.0,0.150541]
[1738686432900,0.00022428,99641.0,99640.0,0.38162606]
[1738686433163,0.00022428,99641.0,99640.0,0.38370089]
[1738686433752,0.00022428,99641.0,99640.0,0.53370089]
[1738686433935,0.00027104,99641.0,99640.0,0.53370089]
[1738686434330,0.00027104,99641.0,99640.0,0.53470089]
[1738686434603,0.00027104,99641.0,99640.0,0.53370089]
[1738686435018,0.00027104,99641.0,99640.0,0.53470089]
[1738686435223,0.00027104,99641.0,99640.0,0.53370089]
[1738686435651,0.00027104,99641.0,99640.0,0.53470089]
[1738686436058,0.00027104,99641.0,99640.0,0.53570089]
[1738686436829,0.00027104,99641.0,99640.0,0.54567192]
[1738686437263,0.00027104,99641.0,99640.0,0.54467192]
[1738686437663,0.00027104,99641.0,99640.0,0.54567192]
[1738686437915,0.00027104,99641.0,99640.0,0.54467192]
[1738686438492,0.00027104,99641.0,99640.0,0.54567192]
[1738686439814,0.00027104,99641.0,99640.0,0.54467192]
[1738686440798,0.00027104,99641.0,99640.0,0.54567192]
[1738686441003,0.00027104,99641.0,99640.0,0.54467192]
[1738686441510,0.00027104,99641.0,99640.0,0.54567192]
[1738686441711,0.00027104,99641.0,99640.0,0.54467192]
[1738686443439,0.00027104,99641.0,99640.0,0.54367192]
[1738686443655,0.00027104,99641.0,99640.0,0.25600089]
[1738686444603,0.00027104,99641.0,99640.0,0.25700089]
[1738686444868,0.00027104,99641.0,99640.0,0.25600089]
[1738686445009,0.00027104,99641.0,99640.0,0.25700089]
[1738686445607,0.00027104,99641.0,99640.0,0.25600089]
[1738686445867,0.00027104,99641.0,99640.0,0.25700089]
[1738686446362,0.00027104,99641.0,99640.0,0.25500089]
[1738686446570,0.00027104,99641.0,99640.0,0.25600089]
[1738686446714,0.00027104,99641.0,99640.0,0.25700089]
[1738686446918,0.00027104,99641.0,99640.0,0.25600089]
[1738686447464,0.00027104,99641.0,99640.0,0.25500089]
[1738686447679,0.00027104,99641.0,99640.0,0.25600089]
[1738686447874,0.00027104,99641.0,99640.0,0.25700089]
[1738686448049,0.00027104,99641.0,99640.0,0.25600089]
[1738686448807,0.00027104,99641.0,99640.0,0.25500089]
[1738686449145,0.00027104,99641.0,99640.0,0.25600089]
[1738686449341,0.00027104,99641.0,99640.0,0.40700089]
[1738686451333,0.00027104,99641.0,99640.0,0.25700089]
[1738686452537,0.00027104,99641.0,99640.0,0.25500089]
[1738686452812,0.00027104,99641.0,99640.0,0.25700089]
[1738686453222,0.00027104,99641.0,99640.0,0.25500089]
[1738686453357,0.00027104,99641.0,99640.0,0.25600089]
[1738686453578,0.00027104,99641.0,99640.0,0.25700089]
[1738686453871,0.00027104,99641.0,99640.0,0.25600089]
[1738686454101,0.00027104,99641.0,99640.0,0.48500089]
[1738686455368,0.00027104,99641.0,99640.0,0.49481937]
[1738686455593,0.00027104,99641.0,99640.0,0.49581937]
[1738686455795,0.00027104,99641.0,99640.0,0.49481937]
[1738686455977,0.00027104,99641.0,99640.0,0.25600089]
[1738686456179,0.00027104,99641.0,99640.0,0.25700089]
[1738686456622,0.00027104,99641.0,99640.0,0.25600089]
[1738686457527,0.00027104,99641.0,99640.0,0.25700089]
[1738686457753,0.00027104,99641.0,99640.0,0.25600089]
[1738686458686,0.00027104,99641.0,99640.0,0.25500089]
[1738686459135,0.00027104,99641.0,99640.0,0.25600089]
[1738686459351,0.00027104,99641.0,99640.0,0.25700089]
[1738686460189,0.00027104,99641.0,99640.0,0.25600089]
[1738686460363,0.00027104,99641.0,99640.0,0.29515389]
[1738686460561,0.00027104,99641.0,99640.0,0.29615389]
[1738686460763,0.00027104,99641.0,99640.0,0.29715389]
[1738686462565,0.00027104,99641.0,99640.0,0.29615389]
[1738686462770,0.00027104,99641.0,99640.0,0.19476883]
[1738686462942,0.00027104,99641.0,99640.0,0.15361583]
[1738686463148,0.00027104,99641.0,99640.0,0.15261583]
[1738686463612,0.00027104,99641.0,99640.0,0.15361583]
[1738686463782,0.00027104,99641.0,99640.0,0.15461583]
[1738686463986,0.01904489,99641.0,99640.0,0.15361583]
[1738686464190,0.01904489,99641.0,99640.0,0.15261583]
[1738686464581,0.01904489,99641.0,99640.0,0.15361583]
[1738686464852,0.00027104,99641.0,99640.0,0.15361583]
[1738686465796,0.00027104,99641.0,99640.0,0.15461583]
[1738686466133,0.00027104,99641.0,99640.0,0.18465665]
[1738686466338,0.00027104,99641.0,99640.0,0.18365665]
[1738686466542,0.00027104,99641.0,99640.0,0.18565665]
[1738686466904,0.00027104,99641.0,99640.0,0.18465665]
[1738686467181,0.00027104,99641.0,99640.0,0.18565665]
[1738686467515,0.00027104,99641.0,99640.0,0.18365665]
[1738686467852,0.00027104,99641.0,99640.0,0.18565665]
[1738686468073,0.00027104,99641.0,99640.0,0.28704171]
[1738686469292,0.00027104,99641.0,99640.0,0.28604171]
[1738686469492,0.00027104,99641.0,99640.0,0.28704171]
[1738686470102,0.00027104,99641.0,99640.0,0.28804171]
[1738686470431,0.00027104,99641.0,99640.0,0.28604171]
[1738686470637,0.00027104,99641.0,99640.0,0.28804171]
[1738686470817,0.00027104,99641.0,99640.0,0.28704171]
[1738686472502,0.00027104,99641.0,99640.0,0.28804171]
[1738686472905,0.00027104,99641.0,99640.0,0.28704171]
[1738686473114,0.00027104,99641.0,99640.0,0.28604171]
[1738686473391,0.00027104,99641.0,99640.0,0.28804171]
[1738686477150,0.00027104,99641.0,99640.0,0.48424171]
[1738686478653,0.00027104,99641.0,99640.0,0.48324171]
[1738686479033,0.06150734,99670.0,99641.0,0.15]
[1738686479239,0.06155413,99670.0,99669.0,0.150498]
[1738686479688,4.679e-05,99670.0,99669.0,0.150498]
[1738686479893,4.679e-05,99670.0,99669.0,0.1525244]
[1738686480506,0.00404679,99670.0,99669.0,0.1525244]
[1738686481823,0.00404679,99670.0,99669.0,0.25490946]
[1738686482022,4.679e-05,99670.0,99669.0,0.25490946]
[1738686482202,0.00104679,99670.0,99669.0,0.25490946]
[1738686482404,0.00204679,99670.0,99669.0,0.25490946]
[1738686482794,4.679e-05,99670.0,99669.0,0.25490946]
[1738686483001,4.679e-05,99670.0,99669.0,0.28587095]
[1738686483219,4.679e-05,99670.0,99669.0,0.36347095]
[1738686483422,4.679e-05,99670.0,99669.0,0.51347095]
[1738686483624,4.679e-05,99670.0,99669.0,0.51547095]
[1738686483825,4.679e-05,99670.0,99669.0,0.51447095]
[1738686484243,0.06353237,99701.0,99700.0,0.150451]
[1738686484444,0.06400023,99701.0,99700.0,0.150451]
[1738686484645,0.00046786,99701.0,99700.0,0.15242489]
[1738686486029,0.00046786,99701.0,99700.0,0.15342489]
[1738686486232,0.00046786,99701.0,99700.0,0.25801352]
[1738686486467,0.00046786,99701.0,99700.0,0.25680995]
[1738686491201,0.00046786,99701.0,99700.0,0.15442489]
[1738686492369,0.00046786,99701.0,99700.0,0.15242489]
[1738686492692,0.00046786,99701.0,99700.0,0.15442489]
[1738686493496,0.00046786,99701.0,99700.0,0.15342489]
[1738686493695,0.00046786,99701.0,99700.0,0.25680995]
[1738686494521,0.00046786,99701.0,99700.0,0.53380995]
[1738686494953,0.00046786,99701.0,99700.0,0.86160995]
[1738686495187,0.0001068,99711.0,99700.0,0.86160995]
[1738686495188,3.6e-07,99702.0,99701.0,0.300449]
[1738686495371,6.4e-07,99702.0,99701.0,0.48373406]
[1738686495579,6.4e-07,99702.0,99701.0,0.48564238]
[1738686495879,9.4e-07,99714.0,99713.0,0.300431]
[1738686496078,9.4e-07,99714.0,99713.0,0.48531606]
[1738686496286,9.4e-07,99714.0,99713.0,0.48720369]
[1738686496463,9.4e-07,99714.0,99713.0,0.53540369]
[1738686496846,9.4e-07,99714.0,99713.0,1.42640369]
[1738686497041,0.0002245,99727.0,99720.0,0.01]
[1738686497283,3.8e-07,99729.0,99727.0,0.01]
[1738686497458,3.8e-07,99729.0,99728.0,0.32888795]
[1738686497822,3.8e-07,99729.0,99728.0,0.32768506]
[1738686498024,3.8e-07,99729.0,99728.0,0.32956047]
[1738686499177,0.06168568,99767.0,99766.0,0.150351]
[1738686499395,1.56182601,99767.0,99766.0,0.25273606]
[1738686499579,0.00014033,99767.0,99766.0,0.25461147]
[1738686499778,0.00014033,99767.0,99766.0,0.00187541]
[1738686499974,0.00014033,99767.0,99765.0,0.150351]
[1738686500181,0.00014033,99767.0,99766.0,0.00187541]
[1738686500427,0.00014033,99767.0,99766.0,0.00387541]
[1738686500994,0.00014033,99767.0,99766.0,0.00287541]
[1738686502103,0.00014033,99767.0,99766.0,0.00187541]
[1738686503034,0.00014033,99767.0,99766.0,0.10646324]
[1738686503387,0.00014033,99767.0,99766.0,0.10746324]
[1738686504062,0.00014033,99767.0,99766.0,0.10646324]
[1738686504404,0.00014033,99767.0,99766.0,0.10746324]
[1738686504778,0.00014033,99767.0,99766.0,0.10646324]
[1738686505260,0.00014033,99767.0,99766.0,0.10626047]
[1738686505460,0.00014033,99767.0,99766.0,0.00287541]
[1738686505603,0.00014033,99767.0,99766.0,0.00187541]
[1738686505808,0.00014033,99767.0,99766.0,0.00287541]
[1738686506044,0.00014033,99767.0,99766.0,0.00187541]
[1738686506443,0.00014033,99767.0,99766.0,0.00287541]
[1738686506661,0.00014033,99767.0,99766.0,0.00187541]
[1738686508056,0.00014033,99767.0,99766.0,0.00287541]
[1738686508408,0.00014033,99767.0,99766.0,0.00187541]
[1738686508680,0.00014033,99767.0,99766.0,0.00287541]
[1738686509554,0.00014033,99767.0,99766.0,0.10526047]
[1738686509762,0.00014033,99767.0,99766.0,0.1064631]
[1738686509969,1.5,99786.0,99766.0,0.1064631]
[1738686510170,0.0461,99792.0,99785.0,0.150323]
[1738686510371,0.0461,99792.0,99776.0,0.10817084]
[1738686510580,0.0461,99792.0,99785.0,0.150322]
[1738686510914,0.0461,99792.0,99786.0,0.00179758]
[1738686510915,0.05609826,99792.0,99786.0,0.00179758]
[1738686511327,0.150315,99791.0,99779.0,0.200441]
[1738686511493,0.150315,99791.0,99787.0,0.00179758]
[1738686511698,0.05609826,99792.0,99779.0,0.200441]
[1738686511894,0.05609826,99792.0,99788.0,0.00179758]
[1738686512093,0.06109826,99792.0,99789.0,0.150316]
[1738686512298,0.0461,99792.0,99790.0,0.150315]
[1738686512475,0.0461,99792.0,99789.0,0.00179758]
[1738686512678,0.005,99791.0,99788.0,0.150318]
[1738686512933,0.0461,99792.0,99788.0,0.150318]
[1738686513139,0.0461,99792.0,99790.0,0.150315]
[1738686513318,0.0481,99792.0,99790.0,0.150315]
[1738686513527,0.0481,99792.0,99788.0,0.150317]
[1738686513877,0.0481,99792.0,99786.0,0.15032]
[1738686514005,0.0461,99792.0,99789.0,0.00179758]
[1738686514208,0.0481,99792.0,99787.0,0.150319]
[1738686514421,0.0481,99792.0,99788.0,0.15211458]
[1738686514620,0.0480099,99792.0,99788.0,0.15211458]
[1738686514827,0.0540099,99792.0,99788.0,0.00179758]
[1738686515162,0.0540099,99792.0,99785.0,0.200429]
[1738686515370,0.0540099,99792.0,99789.0,0.00179758]
[1738686515525,0.0570099,99792.0,99770.0,0.10817084]
[1738686515727,0.200418,99791.0,99790.0,0.00179758]
[1738686515953,0.150314,99791.0,99780.0,0.10817084]
[1738686516133,0.0580099,99792.0,99780.0,0.10817084]
[1738686516328,0.0580099,99792.0,99781.0,0.00179758]
[1738686516533,0.0460099,99792.0,99787.0,0.150319]
[1738686517031,0.0460099,99792.0,99788.0,0.00179758]
[1738686517261,0.1963229,99792.0,99785.0,0.150322]
[1738686517458,0.1963229,99792.0,99789.0,0.00179758]
[1738686517664,0.1963229,99792.0,99785.0,0.150322]
[1738686517808,0.0460099,99792.0,99790.0,0.00179758]
[1738686518012,0.0460099,99792.0,99786.0,0.15032]
[1738686518271,0.0490099,99792.0,99787.0,0.00179758]
[1738686518616,0.0460099,99792.0,99787.0,0.00179758]
[1738686518831,0.0520099,99792.0,99786.0,0.150321]
[1738686519037,0.0480099,99792.0,99787.0,0.00179758]
[1738686519514,0.0530099,99792.0,99787.0,0.00179758]
[1738686519761,0.00990595,99795.0,99790.0,0.150315]
[1738686520172,0.002,99792.0,99791.0,0.00179758]
[1738686520627,0.00014022,99797.0,99791.0,0.00179758]
[1738686520823,0.00014022,99797.0,99787.0,0.10817084]
[1738686521029,0.00014022,99797.0,99794.0,0.150309]
[1738686521173,0.005,99792.0,99791.0,0.150314]
[1738686521371,0.00014022,99797.0,99791.0,0.0017876]
[1738686521656,0.00014022,99797.0,99796.0,0.150306]
[1738686521827,0.00014022,99797.0,99796.0,0.25269106]
[1738686522038,0.00014022,99797.0,99796.0,0.25447866]
[1738686522766,0.00014022,99797.0,99796.0,0.27283629]
[1738686522989,0.00014022,99797.0,99796.0,0.27383629]
[1738686523566,0.00014022,99797.0,99796.0,0.02114523]
[1738686523775,0.00014022,99797.0,99796.0,0.17145123]
[1738686524109,0.00014022,99797.0,99796.0,0.19986902]
[1738686524527,0.00014022,99797.0,99796.0,0.20086902]
[1738686524730,0.00014022,99797.0,99796.0,0.19986902]
[1738686525177,0.00014022,99797.0,99796.0,0.20086902]
[1738686525387,0.00014022,99797.0,99796.0,0.17045123]
[1738686525602,0.00014022,99797.0,99796.0,0.02014523]
[1738686525759,0.00014022,99797.0,99796.0,0.02114523]
[1738686525946,0.00014022,99797.0,99796.0,0.02014523]
[1738686526151,0.00014022,99797.0,99796.0,0.17045123]
[1738686526765,0.00014022,99797.0,99796.0,0.02014523]
[1738686527022,0.15044522,99797.0,99796.0,0.02014523]
[1738686527227,0.15044522,99797.0,99796.0,0.01835763]
[1738686527450,0.15044522,99797.0,99796.0,0.01935763]
[1738686527923,0.15044522,99797.0,99796.0,0.01835763]
[1738686533059,0.00014022,99797.0,99796.0,0.01835763]
[1738686533267,0.00014022,99797.0,99796.0,0.01984283]
[1738686535123,0.00014022,99797.0,99796.0,0.17014883]
[1738686535287,0.00024692,99797.0,99796.0,0.17014883]
[1738686536123,0.00024692,99797.0,99796.0,0.0493171]
[1738686536771,0.00024692,99797.0,99796.0,0.1996231]
[1738686537405,0.00024692,99797.0,99796.0,0.2006231]
[1738686537610,0.00024692,99797.0,99796.0,0.30200816]
[1738686537915,0.00124692,99797.0,99796.0,0.30200816]
[1738686538661,0.00024692,99797.0,99796.0,0.30200816]
[1738686539062,0.00024692,99797.0,99796.0,0.30300816]
[1738686539305,0.00024692,99797.0,99796.0,0.2006231]
[1738686539535,0.15055192,99797.0,99796.0,0.0503171]
[1738686539946,0.15055192,99797.0,99796.0,0.0488319]
[1738686540464,0.15055192,99797.0,99796.0,0.0478319]
[1738686540614,0.15055192,99797.0,99796.0,0.0488319]
[1738686540956,0.00024692,99797.0,99796.0,0.0478319]
[1738686541132,0.15055192,99797.0,99796.0,0.01835763]
[1738686541294,0.00024692,99797.0,99796.0,0.02012858]
[1738686541499,0.15055192,99797.0,99796.0,0.01835763]
[1738686541701,0.15055192,99797.0,99796.0,0.02012858]
[1738686541906,0.15055192,99797.0,99796.0,0.01835763]
[1738686542468,0.15055192,99797.0,99796.0,0.01935763]
[1738686543656,0.15055192,99797.0,99796.0,0.01835763]
[1738686544047,0.15055192,99797.0,99796.0,0.01935763]
[1738686544249,0.15055192,99797.0,99796.0,0.01835763]
[1738686545071,0.22995192,99797.0,99796.0,0.01835763]
[1738686545295,0.150309,99794.0,99793.0,0.01835763]
[1738686546614,0.150311,99793.0,99792.0,0.00022407]
[1738686548029,0.153311,99793.0,99792.0,0.00022407]
[1738686549015,1.653311,99793.0,99792.0,0.00022407]
[1738686550031,1.66343525,99793.0,99792.0,0.00022407]
[1738686550233,0.153311,99793.0,99792.0,0.00022407]
[1738686550436,0.003,99793.0,99792.0,0.00022407]
[1738686550642,0.003,99793.0,99792.0,0.00201065]
[1738686550850,0.003,99793.0,99792.0,0.15232265]
[1738686551056,0.003,99793.0,99792.0,0.25470771]
[1738686551259,0.002,99793.0,99792.0,0.25470771]
[1738686551513,0.00024692,99797.0,99796.0,0.150306]
[1738686551697,0.00024692,99797.0,99796.0,0.25269106]
[1738686552039,0.00024692,99797.0,99796.0,0.25447764]
[1738686553131,0.00024692,99797.0,99796.0,0.33007764]
[1738686553363,0.00024692,99797.0,99796.0,0.34843527]
[1738686553561,0.00024692,99797.0,99796.0,0.39513527]
[1738686553768,0.00024692,99797.0,99796.0,0.57584842]
[1738686553969,0.00024692,99797.0,99796.0,0.57684842]
[1738686554170,0.07981282,99827.0,99826.0,0.150261]
[1738686554396,0.08028013,99827.0,99826.0,0.25264606]
[1738686554679,0.00046731,99827.0,99826.0,0.25435402]
[1738686555179,0.00046731,99827.0,99826.0,0.10409302]
[1738686555416,0.15072631,99827.0,99826.0,0.10409302]
[1738686555621,0.15072631,99827.0,99826.0,0.12245065]
[1738686556360,0.00046731,99827.0,99826.0,0.12245065]
[1738686556559,0.00046731,99827.0,99826.0,0.02006559]
[1738686556560,0.15072631,99827.0,99826.0,0.02006559]
[1738686556926,0.00046731,99827.0,99794.0,0.0788]
[1738686557143,0.00046731,99827.0,99795.0,0.10238506]
[1738686557144,0.01022575,99827.0,99795.0,0.10238506]
[1738686557344,0.150306,99796.0,99795.0,0.00170158]
[1738686557678,0.150311,99793.0,99792.0,0.00022407]
[1738686557883,1.650311,99793.0,99792.0,0.00022407]
[1738686559768,0.150311,99793.0,99792.0,0.00122407]
[1738686560123,0.150311,99793.0,99792.0,0.00022407]
[1738686560241,0.150311,99793.0,99792.0,0.00122407]
[1738686560442,0.1604925,99793.0,99792.0,0.00122407]
[1738686560664,0.150311,99793.0,99792.0,0.00122407]
[1738686562515,0.150311,99793.0,99792.0,0.00022407]
[1738686563059,0.150311,99793.0,99792.0,0.00122407]
[1738686563662,0.150311,99793.0,99792.0,0.00022407]
[1738686564253,0.152311,99793.0,99792.0,0.00022407]
[1738686564573,1.90569606,99793.0,99792.0,0.00022407]
[1738686564782,1.95269606,99793.0,99792.0,0.00022407]
[1738686565631,1.95069606,99793.0,99792.0,0.00022407]
[1738686565827,1.94969606,99793.0,99792.0,0.00022407]
[1738686566080,1.95169606,99793.0,99792.0,0.00022407]
[1738686566279,1.95069606,99793.0,99792.0,0.00022407]
[1738686566627,1.95969606,99793.0,99792.0,0.00122407]
[1738686566963,2.03649606,99793.0,99792.0,0.00122407]
[1738686567166,2.03949606,99793.0,99792.0,0.00122407]
[1738686567371,2.14199078,99793.0,99792.0,0.00122407]
[1738686568150,2.14199078,99793.0,99761.0,0.0802363]
[1738686568151,1.88918506,99793.0,99761.0,0.0802363]
[1738686568365,1.88918506,99793.0,99784.0,0.00036429]
[1738686568366,0.377823,99785.0,99784.0,0.00036429]
[1738686568578,0.150368,99755.0,99754.0,0.0802363]
[1738686568779,1.650368,99755.0,99754.0,0.0802363]
[1738686568979,1.5,99755.0,99744.0,0.10238506]
[1738686569275,0.150383,99745.0,99744.0,0.10238506]
[1738686569826,0.150383,99745.0,99743.0,0.00014033]
[1738686571108,0.150383,99745.0,99744.0,0.001]
[1738686572820,0.150384,99744.0,99743.0,0.00014033]
[1738686573247,0.150384,99744.0,99743.0,0.00114033]
[1738686573617,0.150382,99746.0,99743.0,0.00014033]
[1738686573790,0.00997983,99754.0,99743.0,0.00014033]
[1738686573991,0.001,99744.0,99743.0,0.00014033]
[1738686574351,0.001,99744.0,99743.0,0.4891858]
[1738686574479,0.001,99744.0,99743.0,0.48621139]
[1738686574675,0.001,99744.0,99743.0,0.49796987]
[1738686575089,0.001,99744.0,99743.0,0.48796987]
[1738686575857,0.150342,99773.0,99744.0,0.15]
[1738686576058,0.150342,99773.0,99750.0,0.10817084]
[1738686576275,0.0802363,99784.0,99752.0,0.200497]
[1738686576440,0.150348,99769.0,99761.0,0.150359]
[1738686576620,0.200438,99782.0,99762.0,0.10238506]
[1738686576969,0.15034,99774.0,99766.0,0.15035]
[1738686577297,0.15,99795.0,99765.0,0.150352]
[1738686577471,0.15,99793.0,99767.0,0.00175121]
[1738686577667,0.18262136,99794.0,99765.0,0.150352]
[1738686577668,0.150343,99772.0,99765.0,0.150352]
[1738686577872,0.200425,99788.0,99766.0,0.00175121]
[1738686578110,0.15,99789.0,99766.0,0.00175121]
[1738686578312,0.15,99793.0,99766.0,0.00175121]
[1738686578463,0.15,99791.0,99763.0,0.200473]
[1738686578672,0.15,99789.0,99766.0,0.15035]
[1738686578879,0.11250892,99794.0,99765.0,0.150353]
[1738686578880,0.150338,99775.0,99765.0,0.150353]
[1738686579062,0.20045,99776.0,99766.0,0.00175121]
[1738686579266,0.150342,99773.0,99765.0,0.150353]
[1738686579622,0.15035,99767.0,99766.0,0.00175121]
[1738686579945,1.5,99767.0,99744.0,0.0802363]
[1738686580171,0.150367,99756.0,99749.0,0.150377]
[1738686580396,0.150366,99757.0,99750.0,0.150375]
[1738686580600,0.150366,99757.0,99750.0,0.15208994]
[1738686580804,0.200476,99763.0,99750.0,0.15208994]
[1738686581005,0.150366,99756.0,99750.0,0.15208994]
[1738686581234,1.5,99767.0,99750.0,0.00171494]
[1738686581399,1.5,99767.0,99745.0,0.10238506]
[1738686581400,1.5,99767.0,99751.0,0.150374]
[1738686581604,0.150362,99759.0,99752.0,0.1520914]
[1738686581805,1.5,99767.0,99752.0,0.0017204]
[1738686582000,0.10249472,99766.0,99743.0,0.08344033]
[1738686582206,0.150384,99745.0,99743.0,0.00014033]
[1738686582458,0.150375,99751.0,99744.0,0.15210787]
[1738686582820,0.150375,99751.0,99750.0,0.001]
[1738686583292,0.150375,99751.0,99750.0,0.00272387]
[1738686583498,0.150374,99752.0,99744.0,0.00022407]
[1738686583722,0.150376,99750.0,99745.0,0.00172387]
[1738686584131,0.200475,99763.0,99745.0,0.00172387]
[1738686584331,0.01017864,99766.0,99745.0,0.00172387]
[1738686584486,0.150377,99749.0,99744.0,0.00022407]
[1738686584687,0.200498,99752.0,99745.0,0.00172387]
[1738686584893,0.200498,99752.0,99744.0,0.00022407]
[1738686584894,0.150383,99745.0,99744.0,0.00022407]
[1738686585303,0.200487,99757.0,99744.0,0.00022407]
[1738686585504,1.5,99745.0,99744.0,0.00022407]
[1738686585845,1.650383,99745.0,99744.0,0.00022407]
[1738686587520,1.650383,99745.0,99744.0,0.00122407]
[1738686588929,0.150383,99745.0,99744.0,0.00122407]
[1738686589208,0.150383,99745.0,99744.0,0.00022407]
[1738686589406,0.150383,99745.0,99744.0,0.00122407]
[1738686589609,1.650383,99745.0,99744.0,0.00122407]
[1738686590227,1.650383,99745.0,99744.0,0.00022407]
[1738686590407,1.651383,99745.0,99744.0,0.00022407]
[1738686590771,1.66140615,99745.0,99744.0,0.00022407]
[1738686590975,1.66040615,99745.0,99744.0,0.00022407]
[1738686591399,1.66140615,99745.0,99744.0,0.00022407]
[1738686591628,1.650383,99745.0,99744.0,0.00022407]
[1738686591933,1.652383,99745.0,99744.0,0.00022407]
[1738686592464,0.152383,99745.0,99744.0,0.00022407]
[1738686593045,1.652383,99745.0,99744.0,0.00022407]
[1738686593245,1.653383,99745.0,99744.0,0.00022407]
[1738686593446,1.651383,99745.0,99744.0,0.00022407]
[1738686593641,1.653383,99745.0,99744.0,0.00022407]
[1738686594448,1.651383,99745.0,99744.0,0.00022407]
[1738686594790,1.653383,99745.0,99744.0,0.00022407]
[1738686595131,1.652383,99745.0,99744.0,0.00022407]
[1738686595563,1.653383,99745.0,99744.0,0.00022407]
[1738686597551,1.651383,99745.0,99744.0,0.00022407]
[1738686597970,1.653383,99745.0,99744.0,0.00022407]
[1738686598532,1.652383,99745.0,99744.0,0.00022407]
[1738686599645,0.200507,99747.0,99744.0,0.00022407]
[1738686599844,0.0001068,99750.0,99749.0,0.150377]
[1738686600043,0.0001068,99750.0,99749.0,0.25574662]
[1738686600398,0.0001068,99750.0,99749.0,0.51045258]
[1738686603206,0.0001068,99750.0,99749.0,0.51145258]
[1738686603403,0.0001068,99750.0,99749.0,0.48074379]
[1738686603789,0.0001068,99750.0,99749.0,0.47974379]
[1738686604021,0.0001068,99750.0,99749.0,0.48074379]
[1738686604223,0.150331,99780.0,99773.0,0.15034]
[1738686604560,0.200434,99783.0,99775.0,0.150337]
[1738686605155,1.5,99785.0,99784.0,0.150324]
[1738686605357,0.200398,99802.0,99782.0,0.200435]
[1738686605552,0.150306,99796.0,99789.0,0.150316]
[1738686605880,0.00024685,99797.0,99780.0,0.10817084]
[1738686605881,1.5,99793.0,99781.0,0.150329]
[1738686606212,0.150315,99790.0,99782.0,0.350762]
[1738686606413,0.150315,99790.0,99783.0,0.150324]
[1738686606957,0.150317,99789.0,99781.0,0.150328]
[1738686607144,0.150317,99789.0,99782.0,0.150327]
[1738686607502,0.150319,99788.0,99782.0,0.150326]
[1738686608107,1.5,99793.0,99776.0,0.10238506]
[1738686608314,1.700415,99793.0,99776.0,0.10238506]
[1738686608512,0.150318,99788.0,99776.0,0.10238506]
[1738686608738,0.400832,99792.0,99766.0,0.0828]
[1738686609046,0.150345,99771.0,99751.0,0.0802363]
[1738686609273,0.15,99789.0,99761.0,0.200479]
[1738686609406,0.150332,99779.0,99773.0,0.150341]
[1738686609601,0.150337,99776.0,99761.0,0.10238506]
[1738686609827,1.5,99770.0,99768.0,0.150347]
[1738686610041,1.5,99770.0,99769.0,0.150347]
[1738686610621,0.01567561,100030.0,99780.0,0.15033]
[1738686610622,0.150306,99796.0,99780.0,0.15033]
[1738686610902,0.00024685,99797.0,99777.0,0.150333]
[1738686611106,0.150325,99784.0,99777.0,0.150333]
[1738686611283,0.15,99788.0,99777.0,0.200446]
[1738686611431,0.15,99788.0,99761.0,0.10238506]
[1738686611432,0.0001068,99790.0,99762.0,0.200476]
[1738686611634,0.15,99788.0,99763.0,0.10238506]
[1738686612038,0.150341,99773.0,99765.0,0.150351]
[1738686612324,0.150346,99770.0,99769.0,0.001]
[1738686612703,0.150344,99772.0,99765.0,0.150353]
[1738686613112,0.150354,99764.0,99763.0,0.001]
[1738686613654,0.01002622,99772.0,99754.0,0.150369]
[1738686613655,0.150358,99762.0,99754.0,0.150369]
[1738686613858,0.150351,99766.0,99765.0,0.001]
[1738686614159,0.15,99776.0,99765.0,0.001]
[1738686614160,0.20043,99786.0,99765.0,0.001]
[1738686614359,0.3294,99788.0,99765.0,0.001]
[1738686614598,0.150351,99766.0,99765.0,0.001]
[1738686615193,0.150351,99766.0,99741.0,0.0802363]
[1738686615194,1.5,99766.0,99741.0,0.0802363]
[1738686615415,0.150375,99750.0,99749.0,0.00214634]
[1738686616570,0.150375,99750.0,99749.0,0.00314634]
[1738686617167,0.232375,99750.0,99749.0,0.00314634]
[1738686617317,1.732375,99750.0,99749.0,0.00314634]
[1738686617520,1.732375,99750.0,99749.0,0.00214634]
[1738686617759,1.732375,99750.0,99749.0,0.00036461]
[1738686618633,1.650375,99750.0,99749.0,0.00036461]
[1738686619740,1.653375,99750.0,99749.0,0.00036461]
[1738686619944,1.651375,99750.0,99749.0,0.00036461]
[1738686620350,1.654375,99750.0,99749.0,0.00036461]
[1738686620525,0.154375,99750.0,99749.0,0.00036461]
[1738686620726,0.004,99750.0,99749.0,0.00036461]
[1738686620935,0.154375,99750.0,99749.0,0.00036461]
[1738686622113,0.230575,99750.0,99749.0,0.00036461]
[1738686622309,0.151375,99750.0,99749.0,0.00036461]
[1738686622675,0.150375,99750.0,99749.0,0.00036461]
[1738686623085,0.17004705,99750.0,99749.0,0.00036461]
[1738686623631,0.17104705,99750.0,99749.0,0.00036461]
[1738686623839,0.17004705,99750.0,99749.0,0.00036461]
[1738686623991,0.17104705,99750.0,99749.0,0.00036461]
[1738686624197,0.17004705,99750.0,99749.0,0.00036461]
[1738686624376,0.151375,99750.0,99749.0,0.00036461]
[1738686624774,1.651375,99750.0,99749.0,0.00036461]
[1738686625154,1.650375,99750.0,99749.0,0.00036461]
[1738686625761,1.654375,99750.0,99749.0,0.00036461]
[1738686626210,1.650375,99750.0,99749.0,0.00036461]
[1738686626384,1.90376006,99750.0,99749.0,0.00036461]